[Event "Late-Titled-Tuesday-Blitz-October-10-2023"]
[Site "Chess.com"]
[Date "2023.10.10"]
[Round "9"]
[White "egnfanclub"]
[Black "kreonx"]
[Result "1-0"]
[WhiteElo "2373"]
[BlackElo "2479"]
[TimeControl "180+1"]
[EndTime "15:40:10 PDT"]
[Termination "egnfanclub won by checkmate"]

1. e4 {[%clk 0:03:00.9]} 1... c6 {[%clk 0:00:51]} 2. d4 {[%clk 0:02:59.4]} 2...
d5 {[%clk 0:00:51.9]} 3. exd5 {[%clk 0:03:00.1]} 3... cxd5 {[%clk 0:00:52.3]} 4.
c4 {[%clk 0:03:01]} 4... Nf6 {[%clk 0:00:51.8]} 5. Nc3 {[%clk 0:03:01.9]} 5...
g6 {[%clk 0:00:51.9]} 6. cxd5 {[%clk 0:02:58.8]} 6... Bg7 {[%clk 0:00:52.2]} 7.
Qb3 {[%clk 0:02:59.5]} 7... O-O {[%clk 0:00:52.3]} 8. Be2 {[%clk 0:02:59.1]}
8... Nbd7 {[%clk 0:00:52.4]} 9. Bf3 {[%clk 0:02:59.6]} 9... Nb6 {[%clk
0:00:50.7]} 10. a4 {[%clk 0:03:00.2]} 10... a5 {[%clk 0:00:48.2]} 11. Nge2
{[%clk 0:02:46]} 11... e6 {[%clk 0:00:48.5]} 12. d6 {[%clk 0:02:31]} 12... Qxd6
{[%clk 0:00:47]} 13. O-O {[%clk 0:02:26]} 13... Nbd5 {[%clk 0:00:46.1]} 14. Nb5
{[%clk 0:02:10.5]} 14... Qd7 {[%clk 0:00:43.9]} 15. Bg5 {[%clk 0:01:59]} 15...
b6 {[%clk 0:00:38.4]} 16. Rac1 {[%clk 0:01:57.8]} 16... Ba6 {[%clk 0:00:37.2]}
17. Nec3 {[%clk 0:01:56.3]} 17... Bxb5 {[%clk 0:00:34.5]} 18. Nxb5 {[%clk
0:01:55.1]} 18... Rfc8 {[%clk 0:00:32.6]} 19. g3 {[%clk 0:01:47.7]} 19... h6
{[%clk 0:00:26.8]} 20. Bd2 {[%clk 0:01:47]} 20... Rxc1 {[%clk 0:00:26.1]} 21.
Rxc1 {[%clk 0:01:46.5]} 21... Rc8 {[%clk 0:00:27]} 22. Rxc8+ {[%clk 0:01:42.1]}
22... Qxc8 {[%clk 0:00:27.9]} 23. Nd6 {[%clk 0:01:38.2]} 23... Qc6 {[%clk
0:00:27.7]} 24. Nc4 {[%clk 0:01:36.8]} 24... Nd7 {[%clk 0:00:26.1]} 25. Bc3
{[%clk 0:01:28.5]} 25... Qc7 {[%clk 0:00:25.9]} 26. Ne3 {[%clk 0:01:23.6]} 26...
Nxe3 {[%clk 0:00:22.8]} 27. fxe3 {[%clk 0:01:24.5]} 27... e5 {[%clk 0:00:21.9]}
28. Bd5 {[%clk 0:01:13.9]} 28... Nf8 {[%clk 0:00:19.1]} 29. dxe5 {[%clk
0:01:05.1]} 29... Bxe5 {[%clk 0:00:19.6]} 30. Bxe5 {[%clk 0:01:04.8]} 30... Qxe5
{[%clk 0:00:19.5]} 31. Bxf7+ {[%clk 0:01:05.1]} 31... Kg7 {[%clk 0:00:20]} 32.
Bg8 {[%clk 0:01:00.1]} 32... Qf6 {[%clk 0:00:16.6]} 33. Bd5 {[%clk 0:00:57.5]}
33... Nd7 {[%clk 0:00:16.9]} 34. Qc3 {[%clk 0:00:48.6]} 34... Qxc3 {[%clk
0:00:14.8]} 35. bxc3 {[%clk 0:00:49.5]} 35... Nc5 {[%clk 0:00:15]} 36. Bc6
{[%clk 0:00:47.1]} 36... Kf6 {[%clk 0:00:15.3]} 37. Kf2 {[%clk 0:00:46]} 37...
Ke5 {[%clk 0:00:15.8]} 38. Kf3 {[%clk 0:00:45.1]} 38... Kf5 {[%clk 0:00:12.6]}
39. h4 {[%clk 0:00:44.7]} 39... g5 {[%clk 0:00:11.3]} 40. hxg5 {[%clk
0:00:34.1]} 40... hxg5 {[%clk 0:00:12.2]} 41. e4+ {[%clk 0:00:31.1]} 41... Kf6
{[%clk 0:00:12.8]} 42. Ke3 {[%clk 0:00:30.5]} 42... Ke5 {[%clk 0:00:12.3]} 43.
g4 {[%clk 0:00:27.5]} 43... Ne6 {[%clk 0:00:11.4]} 44. Kd3 {[%clk 0:00:25.8]}
44... Nc5+ {[%clk 0:00:10.7]} 45. Kc4 {[%clk 0:00:26]} 45... Kf4 {[%clk
0:00:08.4]} 46. Kb5 {[%clk 0:00:25]} 46... Kxg4 {[%clk 0:00:08.9]} 47. Kxb6
{[%clk 0:00:25.3]} 47... Nb3 {[%clk 0:00:06.9]} 48. Bd5 {[%clk 0:00:23.3]} 48...
Kf4 {[%clk 0:00:05.5]} 49. Bxb3 {[%clk 0:00:22.8]} 49... g4 {[%clk 0:00:06.2]}
50. Bc4 {[%clk 0:00:19.1]} 50... g3 {[%clk 0:00:04.8]} 51. Bf1 {[%clk
0:00:18.9]} 51... Kxe4 {[%clk 0:00:04]} 52. Bg2+ {[%clk 0:00:18.9]} 52... Kd3
{[%clk 0:00:03.4]} 53. Kxa5 {[%clk 0:00:19.4]} 53... Kxc3 {[%clk 0:00:03.9]} 54.
Kb5 {[%clk 0:00:19.9]} 54... Kd4 {[%clk 0:00:04.6]} 55. a5 {[%clk 0:00:20.4]}
55... Ke3 {[%clk 0:00:05.4]} 56. a6 {[%clk 0:00:20.4]} 56... Kf2 {[%clk
0:00:06.3]} 57. Bc6 {[%clk 0:00:20.3]} 57... Kf1 {[%clk 0:00:05.2]} 58. a7
{[%clk 0:00:20.2]} 58... g2 {[%clk 0:00:06.1]} 59. Bxg2+ {[%clk 0:00:19.9]}
59... Kg1 {[%clk 0:00:06.6]} 60. a8=Q {[%clk 0:00:20.8]} 60... Kh2 {[%clk
0:00:07.2]} 61. Qg8 {[%clk 0:00:20.2]} 61... Kg1 {[%clk 0:00:07.2]} 62. Bf3+
{[%clk 0:00:19.9]} 62... Kh2 {[%clk 0:00:08.1]} 63. Qg2# {[%clk 0:00:19.8]} 1-0

[Event "Late-Titled-Tuesday-Blitz-October-10-2023"]
[Site "Chess.com"]
[Date "2023.10.10"]
[Round "9"]
[White "Elbebiber"]
[Black "AleksandrAleksikov"]
[Result "0-1"]
[WhiteElo "2147"]
[BlackElo "2264"]
[TimeControl "180+1"]
[EndTime "15:40:10 PDT"]
[Termination "AleksandrAleksikov won on time"]

1. d4 {[%clk 0:03:00.9]} 1... Nf6 {[%clk 0:02:56.2]} 2. Bg5 {[%clk 0:03:00.4]}
2... e6 {[%clk 0:02:55.2]} 3. Nf3 {[%clk 0:02:59.5]} 3... d5 {[%clk 0:02:51.8]}
4. e3 {[%clk 0:02:59.1]} 4... Be7 {[%clk 0:02:51.5]} 5. c4 {[%clk 0:02:58.9]}
5... O-O {[%clk 0:02:47.6]} 6. Nc3 {[%clk 0:02:58.3]} 6... c6 {[%clk 0:02:44]}
7. Bd3 {[%clk 0:02:53.6]} 7... Nbd7 {[%clk 0:02:43.6]} 8. O-O {[%clk 0:02:52.3]}
8... h5 {[%clk 0:02:42.8]} 9. Qe2 {[%clk 0:02:39.4]} 9... g6 {[%clk 0:02:41.5]}
10. Rfe1 {[%clk 0:02:31.8]} 10... Nh7 {[%clk 0:02:31.6]} 11. Bxe7 {[%clk
0:02:26.6]} 11... Qxe7 {[%clk 0:02:30.7]} 12. e4 {[%clk 0:02:24.6]} 12... dxc4
{[%clk 0:02:28.7]} 13. Bxc4 {[%clk 0:02:24.5]} 13... e5 {[%clk 0:02:28.8]} 14.
d5 {[%clk 0:02:10.2]} 14... Nb6 {[%clk 0:02:24.5]} 15. Bb3 {[%clk 0:02:10.2]}
15... Ng5 {[%clk 0:02:22.8]} 16. Nxg5 {[%clk 0:01:51.7]} 16... Qxg5 {[%clk
0:02:20.6]} 17. dxc6 {[%clk 0:01:43]} 17... bxc6 {[%clk 0:02:18.1]} 18. Qe3
{[%clk 0:01:40]} 18... Qxe3 {[%clk 0:02:11.2]} 19. Rxe3 {[%clk 0:01:40.9]} 19...
Rd8 {[%clk 0:02:08.9]} 20. Rd1 {[%clk 0:01:33.5]} 20... Rxd1+ {[%clk 0:02:05.5]}
21. Nxd1 {[%clk 0:01:33.6]} 21... Ba6 {[%clk 0:01:49.1]} 22. Rc3 {[%clk
0:01:25]} 22... Bb5 {[%clk 0:01:46.5]} 23. Ne3 {[%clk 0:01:17.9]} 23... Rd8
{[%clk 0:01:41.2]} 24. g3 {[%clk 0:00:55.9]} 24... a5 {[%clk 0:01:28.4]} 25. Bd1
{[%clk 0:00:33.9]} 25... Rd4 {[%clk 0:01:13.3]} 26. f3 {[%clk 0:00:28]} 26...
Kf8 {[%clk 0:01:08.3]} 27. Kf2 {[%clk 0:00:27.1]} 27... Ke7 {[%clk 0:01:06.6]}
28. Ke1 {[%clk 0:00:22.2]} 28... a4 {[%clk 0:01:00.4]} 29. Rc2 {[%clk
0:00:18.9]} 29... Rd3 {[%clk 0:00:55.9]} 30. Nf1 {[%clk 0:00:14.1]} 30... Nc4
{[%clk 0:00:52.1]} 31. b3 {[%clk 0:00:10.2]} 31... axb3 {[%clk 0:00:50.2]} 32.
axb3 {[%clk 0:00:10.5]} 32... Rxb3 {[%clk 0:00:48.3]} 33. Rxc4 {[%clk
0:00:09.4]} 33... Bxc4 {[%clk 0:00:47.3]} 34. Bxb3 {[%clk 0:00:09.7]} 34... Bxb3
{[%clk 0:00:47.1]} 35. Kd2 {[%clk 0:00:09.6]} 35... Ba4 {[%clk 0:00:42.6]} 36.
Ne3 {[%clk 0:00:09.4]} 36... Bb5 {[%clk 0:00:42.4]} 37. Kc3 {[%clk 0:00:08.9]}
37... Kd6 {[%clk 0:00:41.9]} 38. f4 {[%clk 0:00:09]} 38... f6 {[%clk 0:00:37.5]}
39. h4 {[%clk 0:00:08.4]} 39... Be2 {[%clk 0:00:34.6]} 40. Nc2 {[%clk
0:00:07.5]} 40... Bf3 {[%clk 0:00:33.9]} 41. Kd3 {[%clk 0:00:07.2]} 41... Kc5
{[%clk 0:00:32.5]} 42. Ke3 {[%clk 0:00:06.9]} 42... Bg2 {[%clk 0:00:31.9]} 43.
fxe5 {[%clk 0:00:05.6]} 43... fxe5 {[%clk 0:00:30.6]} 44. Kd3 {[%clk 0:00:05.5]}
44... Kb5 {[%clk 0:00:27]} 45. Ne3 {[%clk 0:00:05.4]} 45... Bh3 {[%clk
0:00:20.5]} 46. Kc3 {[%clk 0:00:05.3]} 46... Kc5 {[%clk 0:00:18.5]} 47. Nc4
{[%clk 0:00:05.4]} 47... Bg2 {[%clk 0:00:15.7]} 48. Nxe5 {[%clk 0:00:05.2]}
48... Bxe4 {[%clk 0:00:15]} 49. Nd7+ {[%clk 0:00:04.3]} 49... Kd6 {[%clk
0:00:14.2]} 50. Nf6 {[%clk 0:00:04.3]} 50... Bd5 {[%clk 0:00:13.3]} 51. Kd4
{[%clk 0:00:04.1]} 51... c5+ {[%clk 0:00:13.1]} 52. Ke3 {[%clk 0:00:04.6]} 52...
Ke6 {[%clk 0:00:11.9]} 53. Ne8 {[%clk 0:00:04.7]} 53... Kd7 {[%clk 0:00:10.5]}
54. Ng7 {[%clk 0:00:04.4]} 54... Ke7 {[%clk 0:00:09.9]} 55. Kf4 {[%clk
0:00:03.3]} 55... Kf7 {[%clk 0:00:09.7]} 0-1

[Event "Late-Titled-Tuesday-Blitz-October-10-2023"]
[Site "Chess.com"]
[Date "2023.10.10"]
[Round "9"]
[White "NovikovaGalina"]
[Black "Zq1"]
[Result "1/2-1/2"]
[WhiteElo "2438"]
[BlackElo "2552"]
[TimeControl "180+1"]
[EndTime "15:40:11 PDT"]
[Termination "Game drawn by repetition"]

1. e4 {[%clk 0:03:00.9]} 1... c5 {[%clk 0:02:59]} 2. Nf3 {[%clk 0:03:01.3]} 2...
d6 {[%clk 0:02:58.4]} 3. d4 {[%clk 0:03:02]} 3... cxd4 {[%clk 0:02:58.4]} 4.
Nxd4 {[%clk 0:03:02.9]} 4... Nf6 {[%clk 0:02:58.2]} 5. Nc3 {[%clk 0:03:03.6]}
5... Nc6 {[%clk 0:02:58]} 6. Bg5 {[%clk 0:03:02.2]} 6... Bd7 {[%clk 0:02:57.6]}
7. Qd2 {[%clk 0:02:58.7]} 7... Rc8 {[%clk 0:02:56.5]} 8. O-O-O {[%clk 0:02:55]}
8... Nxd4 {[%clk 0:02:55.3]} 9. Qxd4 {[%clk 0:02:55.9]} 9... Qa5 {[%clk
0:02:54.1]} 10. f4 {[%clk 0:02:48.3]} 10... Qc5 {[%clk 0:02:42.7]} 11. e5 {[%clk
0:02:06.1]} 11... Qxd4 {[%clk 0:02:37.3]} 12. Rxd4 {[%clk 0:02:07]} 12... dxe5
{[%clk 0:02:26.2]} 13. fxe5 {[%clk 0:02:07.9]} 13... h6 {[%clk 0:02:01.7]} 14.
exf6 {[%clk 0:01:39]} 14... hxg5 {[%clk 0:01:58.8]} 15. Bb5 {[%clk 0:01:33.9]}
15... Bxb5 {[%clk 0:01:53.6]} 16. Nxb5 {[%clk 0:01:34.8]} 16... a6 {[%clk
0:01:36.5]} 17. fxe7 {[%clk 0:01:34.7]} 17... Bxe7 {[%clk 0:01:32.4]} 18. Nd6+
{[%clk 0:01:31.7]} 18... Bxd6 {[%clk 0:01:32.1]} 19. Rxd6 {[%clk 0:01:32.6]}
19... O-O {[%clk 0:01:29.5]} 20. Rd7 {[%clk 0:01:26.1]} 20... b5 {[%clk
0:01:26.3]} 21. Rhd1 {[%clk 0:01:26.4]} 21... Rc6 {[%clk 0:01:24]} 22. b3 {[%clk
0:01:22.2]} 22... Rfc8 {[%clk 0:01:22.3]} 23. R1d2 {[%clk 0:01:22.7]} 23... g4
{[%clk 0:01:20.5]} 24. Kb2 {[%clk 0:01:21.6]} 24... Rh6 {[%clk 0:01:17.9]} 25.
g3 {[%clk 0:01:20.2]} 25... Rhc6 {[%clk 0:01:11.5]} 26. a3 {[%clk 0:01:14.1]}
26... f5 {[%clk 0:01:06]} 27. Ra7 {[%clk 0:01:09]} 27... R8c7 {[%clk 0:01:02.5]}
28. Rxc7 {[%clk 0:01:04.1]} 28... Rxc7 {[%clk 0:01:02]} 29. Rd6 {[%clk
0:01:04.8]} 29... Ra7 {[%clk 0:00:59.5]} 30. c4 {[%clk 0:00:54.3]} 30... bxc4
{[%clk 0:00:58.5]} 31. bxc4 {[%clk 0:00:55.2]} 31... Re7 {[%clk 0:00:51.6]} 32.
c5 {[%clk 0:00:51.2]} 32... Rc7 {[%clk 0:00:33.1]} 33. Rxa6 {[%clk 0:00:43.7]}
33... Rxc5 {[%clk 0:00:32.1]} 34. a4 {[%clk 0:00:43.2]} 34... Re5 {[%clk
0:00:31.5]} 35. Kb3 {[%clk 0:00:41.7]} 35... Re3+ {[%clk 0:00:26.5]} 36. Kc4
{[%clk 0:00:35]} 36... Re2 {[%clk 0:00:26.4]} 37. Kd5 {[%clk 0:00:34.4]} 37...
Kh7 {[%clk 0:00:22.8]} 38. a5 {[%clk 0:00:34.2]} 38... Rxh2 {[%clk 0:00:21.2]}
39. Ke5 {[%clk 0:00:34.7]} 39... g6 {[%clk 0:00:18.6]} 40. Ra7+ {[%clk
0:00:29.8]} 40... Kh6 {[%clk 0:00:17.9]} 41. a6 {[%clk 0:00:30.7]} 41... Kg5
{[%clk 0:00:14.6]} 42. Ra8 {[%clk 0:00:28.4]} 42... Ra2 {[%clk 0:00:13.5]} 43.
a7 {[%clk 0:00:22]} 43... Ra6 {[%clk 0:00:12.6]} 44. Kd4 {[%clk 0:00:20.6]}
44... Ra4+ {[%clk 0:00:11.1]} 45. Ke3 {[%clk 0:00:20]} 45... Ra3+ {[%clk
0:00:10.9]} 46. Kf2 {[%clk 0:00:20.6]} 46... Ra6 {[%clk 0:00:10.4]} 47. Ke3
{[%clk 0:00:20.1]} 47... Re6+ {[%clk 0:00:06.6]} 48. Kf2 {[%clk 0:00:20.2]}
48... Re7 {[%clk 0:00:06.4]} 49. Kg2 {[%clk 0:00:18.3]} 49... Rf7 {[%clk
0:00:06.4]} 50. Kf2 {[%clk 0:00:17]} 50... Kf6 {[%clk 0:00:06.2]} 51. Ke3 {[%clk
0:00:15.3]} 51... g5 {[%clk 0:00:05.1]} 52. Kf2 {[%clk 0:00:10.2]} 52... f4
{[%clk 0:00:03.5]} 53. gxf4 {[%clk 0:00:09.6]} 53... gxf4 {[%clk 0:00:03.3]} 54.
Rg8 {[%clk 0:00:10.2]} 54... Rxa7 {[%clk 0:00:02.2]} 55. Rxg4 {[%clk 0:00:09.5]}
55... Kf5 {[%clk 0:00:02.3]} 56. Rg8 {[%clk 0:00:10.2]} 56... Ra2+ {[%clk
0:00:01.5]} 57. Kf3 {[%clk 0:00:10.4]} 57... Ra3+ {[%clk 0:00:02.2]} 58. Kf2
{[%clk 0:00:11]} 58... Ra2+ {[%clk 0:00:02.7]} 59. Kf3 {[%clk 0:00:10.9]} 59...
Ra3+ {[%clk 0:00:03.4]} 60. Kf2 {[%clk 0:00:11.6]} 60... Ra2+ {[%clk 0:00:03.6]}
1/2-1/2

[Event "Late-Titled-Tuesday-Blitz-October-10-2023"]
[Site "Chess.com"]
[Date "2023.10.10"]
[Round "9"]
[White "GMBenjaminBok"]
[Black "realmadridfc123"]
[Result "1-0"]
[WhiteElo "3023"]
[BlackElo "2821"]
[TimeControl "180+1"]
[EndTime "15:40:13 PDT"]
[Termination "GMBenjaminBok won by resignation"]

1. d4 {[%clk 0:02:59.2]} 1... d5 {[%clk 0:03:00]} 2. c4 {[%clk 0:02:58.8]} 2...
c6 {[%clk 0:03:00.3]} 3. cxd5 {[%clk 0:02:58.8]} 3... cxd5 {[%clk 0:03:00.4]} 4.
Nf3 {[%clk 0:02:59.5]} 4... Nc6 {[%clk 0:03:00.9]} 5. Nc3 {[%clk 0:02:59.8]}
5... Nf6 {[%clk 0:03:01.5]} 6. Bf4 {[%clk 0:02:59.9]} 6... a6 {[%clk 0:03:02.2]}
7. Rc1 {[%clk 0:02:59.4]} 7... Bf5 {[%clk 0:02:53]} 8. e3 {[%clk 0:02:58.9]}
8... e6 {[%clk 0:02:53.5]} 9. Qb3 {[%clk 0:02:58.3]} 9... Ra7 {[%clk 0:02:13.6]}
10. Be2 {[%clk 0:02:54.1]} 10... Bd6 {[%clk 0:02:13.9]} 11. Bxd6 {[%clk
0:02:52.9]} 11... Qxd6 {[%clk 0:02:14.8]} 12. O-O {[%clk 0:02:53]} 12... O-O
{[%clk 0:02:15.5]} 13. Na4 {[%clk 0:02:52.3]} 13... Ne4 {[%clk 0:01:56.2]} 14.
Nc5 {[%clk 0:02:42.1]} 14... Bg4 {[%clk 0:01:48.7]} 15. Rfd1 {[%clk 0:00:45]}
15... Rc8 {[%clk 0:01:39.3]} 16. Nxb7 {[%clk 0:00:39.7]} 16... Qe7 {[%clk
0:00:41]} 17. Nc5 {[%clk 0:00:33.6]} 17... a5 {[%clk 0:00:41.4]} 18. Nxe4 {[%clk
0:00:29.3]} 18... dxe4 {[%clk 0:00:41.4]} 19. Rxc6 {[%clk 0:00:26.3]} 19... Rxc6
{[%clk 0:00:36.4]} 20. Qb8+ {[%clk 0:00:26.1]} 20... Qf8 {[%clk 0:00:35.1]} 21.
Qxa7 {[%clk 0:00:26.3]} 21... exf3 {[%clk 0:00:33.3]} 22. Bxf3 {[%clk
0:00:25.2]} 22... Bxf3 {[%clk 0:00:33.6]} 23. gxf3 {[%clk 0:00:26.1]} 23... Rc2
{[%clk 0:00:34.1]} 24. Qxa5 {[%clk 0:00:20.6]} 24... Rxb2 {[%clk 0:00:34.2]} 25.
d5 {[%clk 0:00:20.5]} 25... h6 {[%clk 0:00:29.3]} 26. dxe6 {[%clk 0:00:19.7]}
26... Rb8 {[%clk 0:00:24.4]} 27. exf7+ {[%clk 0:00:19.8]} 27... Kxf7 {[%clk
0:00:19.1]} 28. Qf5+ {[%clk 0:00:16.8]} 28... Kg8 {[%clk 0:00:19.2]} 29. Qxf8+
{[%clk 0:00:17]} 29... Rxf8 {[%clk 0:00:19.8]} 30. a4 {[%clk 0:00:14.9]} 30...
Ra8 {[%clk 0:00:18.3]} 31. Ra1 {[%clk 0:00:14.2]} 31... Kf7 {[%clk 0:00:19.2]}
32. Kg2 {[%clk 0:00:14]} 32... Ra5 {[%clk 0:00:19.6]} 33. f4 {[%clk 0:00:14]}
33... Kf6 {[%clk 0:00:20]} 34. Kf3 {[%clk 0:00:14.6]} 34... Ke6 {[%clk
0:00:16.8]} 35. Ke4 {[%clk 0:00:14.7]} 35... Kd6 {[%clk 0:00:16.3]} 36. Rg1
{[%clk 0:00:10.8]} 36... Rxa4+ {[%clk 0:00:15.8]} 37. Kf5 {[%clk 0:00:11.4]}
37... Ra7 {[%clk 0:00:16.3]} 38. Kg6 {[%clk 0:00:09.6]} 38... Ke6 {[%clk
0:00:16.3]} 39. e4 {[%clk 0:00:05.8]} 39... Ra4 {[%clk 0:00:15.7]} 40. f3 {[%clk
0:00:05.8]} 40... Ra3 {[%clk 0:00:16.1]} 41. Rg3 {[%clk 0:00:04.9]} 41... Ra7
{[%clk 0:00:16.8]} 42. h4 {[%clk 0:00:04.4]} 42... Rb7 {[%clk 0:00:12.8]} 43. h5
{[%clk 0:00:04.7]} 43... Ra7 {[%clk 0:00:13.5]} 44. Rg2 {[%clk 0:00:05]} 44...
Ra3 {[%clk 0:00:13.7]} 45. Rf2 {[%clk 0:00:05.1]} 45... Ra7 {[%clk 0:00:13.8]}
46. Rb2 {[%clk 0:00:05]} 46... Ra3 {[%clk 0:00:13.6]} 47. Rb6+ {[%clk
0:00:05.1]} 47... Ke7 {[%clk 0:00:13.2]} 48. Rb7+ {[%clk 0:00:05.6]} 48... Kd6
{[%clk 0:00:13.5]} 49. Rxg7 {[%clk 0:00:05.2]} 49... Rxf3 {[%clk 0:00:14.2]} 50.
f5 {[%clk 0:00:05.3]} 50... Rf4 {[%clk 0:00:13.9]} 51. Kxh6 {[%clk 0:00:04.1]}
51... Rxe4 {[%clk 0:00:13.4]} 52. f6 {[%clk 0:00:04.5]} 52... Ke6 {[%clk
0:00:12.3]} 53. f7 {[%clk 0:00:04.5]} 53... Ke7 {[%clk 0:00:11.6]} 54. Kg6
{[%clk 0:00:04.7]} 54... Rg4+ {[%clk 0:00:11.3]} 55. Kh7 {[%clk 0:00:05.1]}
55... Rh4 {[%clk 0:00:09.3]} 56. Kg8 {[%clk 0:00:05.1]} 56... Rf4 {[%clk
0:00:08.4]} 57. f8=Q+ {[%clk 0:00:05.4]} 1-0

[Event "Late-Titled-Tuesday-Blitz-October-10-2023"]
[Site "Chess.com"]
[Date "2023.10.10"]
[Round "9"]
[White "WPWPWP-2015"]
[Black "FMJoseHerrera"]
[Result "0-1"]
[WhiteElo "2533"]
[BlackElo "2739"]
[TimeControl "180+1"]
[EndTime "15:40:22 PDT"]
[Termination "FMJoseHerrera won by checkmate"]

1. e4 {[%clk 0:03:00.9]} 1... c5 {[%clk 0:02:57.7]} 2. Nf3 {[%clk 0:03:00.7]}
2... e6 {[%clk 0:02:58.1]} 3. b3 {[%clk 0:02:59.4]} 3... b6 {[%clk 0:02:57.8]}
4. Bb2 {[%clk 0:02:59.1]} 4... Bb7 {[%clk 0:02:58.2]} 5. Qe2 {[%clk 0:02:59.3]}
5... Qc7 {[%clk 0:02:58.6]} 6. d4 {[%clk 0:02:56.9]} 6... cxd4 {[%clk
0:02:58.6]} 7. Nxd4 {[%clk 0:02:57.1]} 7... a6 {[%clk 0:02:59.2]} 8. Nd2 {[%clk
0:02:57.3]} 8... Nf6 {[%clk 0:02:57.7]} 9. O-O-O {[%clk 0:02:56.9]} 9... Nc6
{[%clk 0:02:56.2]} 10. f3 {[%clk 0:02:51.7]} 10... Rc8 {[%clk 0:02:55.5]} 11.
Nc4 {[%clk 0:02:49]} 11... b5 {[%clk 0:02:53.1]} 12. Ne3 {[%clk 0:02:48]} 12...
Bc5 {[%clk 0:02:50.4]} 13. Nxc6 {[%clk 0:02:42.8]} 13... Qxc6 {[%clk 0:02:49.7]}
14. Rd2 {[%clk 0:02:32.6]} 14... O-O {[%clk 0:02:44.1]} 15. e5 {[%clk 0:02:31]}
15... Nh5 {[%clk 0:02:39.6]} 16. Nd1 {[%clk 0:01:37.5]} 16... Nf4 {[%clk
0:02:38]} 17. Qe1 {[%clk 0:01:38]} 17... Bb4 {[%clk 0:02:29]} 18. c3 {[%clk
0:01:38]} 18... Be7 {[%clk 0:02:25.3]} 19. Kb1 {[%clk 0:01:12.7]} 19... a5
{[%clk 0:02:25.2]} 20. Bd3 {[%clk 0:01:01.7]} 20... a4 {[%clk 0:02:20.3]} 21.
Be4 {[%clk 0:00:59.6]} 21... Qa6 {[%clk 0:02:16.7]} 22. b4 {[%clk 0:00:57.5]}
22... Nd5 {[%clk 0:02:14.5]} 23. a3 {[%clk 0:00:55.6]} 23... Rc4 {[%clk
0:02:12.8]} 24. Bd3 {[%clk 0:00:53.4]} 24... Rc7 {[%clk 0:02:12.5]} 25. Qf1
{[%clk 0:00:50.3]} 25... Bc6 {[%clk 0:02:07]} 26. c4 {[%clk 0:00:41]} 26... bxc4
{[%clk 0:02:05.8]} 27. Bxc4 {[%clk 0:00:41.1]} 27... Qb7 {[%clk 0:02:05.4]} 28.
b5 {[%clk 0:00:32.9]} 28... Bxb5 {[%clk 0:01:53.3]} 29. Bxb5 {[%clk 0:00:32.6]}
29... Rb8 {[%clk 0:01:50.4]} 30. Bxa4 {[%clk 0:00:23.3]} 30... Bxa3 {[%clk
0:01:50.2]} 31. Qd3 {[%clk 0:00:18.8]} 31... Bb4 {[%clk 0:01:47.8]} 32. Rc2
{[%clk 0:00:15.5]} 32... Rxc2 {[%clk 0:01:41.1]} 33. Qxc2 {[%clk 0:00:15.4]}
33... Bf8 {[%clk 0:01:35.3]} 34. Re1 {[%clk 0:00:12.3]} 34... Qa7 {[%clk
0:01:34.5]} 35. Re4 {[%clk 0:00:11.6]} 35... Qa5 {[%clk 0:01:32.8]} 36. Rc4
{[%clk 0:00:10.9]} 36... h6 {[%clk 0:01:30.5]} 37. Rc8 {[%clk 0:00:10.7]} 37...
Rxc8 {[%clk 0:01:29.8]} 38. Qxc8 {[%clk 0:00:09.9]} 38... Qxa4 {[%clk
0:01:30.3]} 39. Nc3 {[%clk 0:00:09]} 39... Nxc3+ {[%clk 0:01:28.3]} 40. Bxc3
{[%clk 0:00:09.4]} 40... Qd1+ {[%clk 0:01:28]} 41. Kb2 {[%clk 0:00:09.3]} 41...
Qe2+ {[%clk 0:01:28.1]} 42. Kb3 {[%clk 0:00:09.4]} 42... Qb5+ {[%clk 0:01:27.5]}
43. Kc2 {[%clk 0:00:09.2]} 43... g5 {[%clk 0:01:26]} 44. h3 {[%clk 0:00:08.6]}
44... Kg7 {[%clk 0:01:25.5]} 45. Qd8 {[%clk 0:00:07.7]} 45... Qe2+ {[%clk
0:01:21.9]} 46. Bd2 {[%clk 0:00:06.4]} 46... Qxg2 {[%clk 0:01:22.3]} 47. h4
{[%clk 0:00:05.3]} 47... Qxf3 {[%clk 0:01:18.8]} 48. hxg5 {[%clk 0:00:05.3]}
48... Qf5+ {[%clk 0:01:19.1]} 49. Kc1 {[%clk 0:00:05.1]} 49... h5 {[%clk
0:01:14.3]} 50. Qxd7 {[%clk 0:00:03.6]} 50... Qxe5 {[%clk 0:01:13.9]} 51. Qc6
{[%clk 0:00:03.6]} 51... Qa1+ {[%clk 0:01:04.8]} 52. Kc2 {[%clk 0:00:03.8]}
52... Qa2+ {[%clk 0:01:05.3]} 53. Kd1 {[%clk 0:00:04.2]} 53... Qb1+ {[%clk
0:01:03.3]} 54. Ke2 {[%clk 0:00:04.5]} 54... Qf5 {[%clk 0:01:02.7]} 55. Qg2
{[%clk 0:00:03.5]} 55... Kg6 {[%clk 0:01:01.7]} 56. Qg3 {[%clk 0:00:03.6]} 56...
e5 {[%clk 0:00:58.5]} 57. Qe3 {[%clk 0:00:03.1]} 57... h4 {[%clk 0:00:56.9]} 58.
Qb6+ {[%clk 0:00:02.9]} 58... Kh5 {[%clk 0:00:55.5]} 59. Qe3 {[%clk 0:00:02.4]}
59... Kg4 {[%clk 0:00:54.9]} 60. Qg1+ {[%clk 0:00:02.3]} 60... Kh5 {[%clk
0:00:54.7]} 61. Kd1 {[%clk 0:00:02.6]} 61... h3 {[%clk 0:00:54]} 62. Ke2 {[%clk
0:00:02.5]} 62... Qg4+ {[%clk 0:00:53.4]} 63. Qxg4+ {[%clk 0:00:02.7]} 63...
Kxg4 {[%clk 0:00:54.3]} 64. Kf2 {[%clk 0:00:03.1]} 64... Be7 {[%clk 0:00:52.5]}
65. Kg1 {[%clk 0:00:03.2]} 65... Bxg5 {[%clk 0:00:52.4]} 66. Bc3 {[%clk
0:00:03.6]} 66... Be3+ {[%clk 0:00:51.2]} 67. Kh2 {[%clk 0:00:03.4]} 67... Bd4
{[%clk 0:00:52.1]} 68. Bd2 {[%clk 0:00:03.1]} 68... f5 {[%clk 0:00:52.3]} 69.
Kh1 {[%clk 0:00:03.4]} 69... f4 {[%clk 0:00:52.9]} 70. Be1 {[%clk 0:00:03.2]}
70... e4 {[%clk 0:00:53.3]} 71. Bd2 {[%clk 0:00:02.7]} 71... e3 {[%clk
0:00:53.6]} 72. Be1 {[%clk 0:00:03]} 72... f3 {[%clk 0:00:54.1]} 73. Kh2 {[%clk
0:00:03]} 73... Be5+ {[%clk 0:00:54.5]} 74. Kh1 {[%clk 0:00:03]} 74... Bg3
{[%clk 0:00:55.4]} 75. Bf2 {[%clk 0:00:01.6]} 75... e2 {[%clk 0:00:53.3]} 76.
Bg1 {[%clk 0:00:01.2]} 76... h2 {[%clk 0:00:48.5]} 77. Be3 {[%clk 0:00:01.1]}
77... e1=Q+ {[%clk 0:00:47.5]} 78. Bg1 {[%clk 0:00:01.4]} 78... hxg1=Q# {[%clk
0:00:46.1]} 0-1